Cogmind - Beta 13 @@@ ROGUE MODE // 2024.04.28 @ 21:20:18 Player: MiNathan Result: Destroyed by G-47 Trooper with Particle Gun Performance ------------- Evolutions (0) 0 Regions Visited (4) 800 Robots Destroyed (8) 40 Value Destroyed (184) 184 Prototype IDs (5) 100 Alien Tech Used (0) 0 Bonus (218) 218 TOTAL SCORE: 1342 Bonus ------- Aligned with FarCom 300 Friendly Fire -82 Cogmind --------- Core Integrity 0/250 Matter 91/300 Energy 140/300 System Corruption 5% Temperature Cool (9) Movement Core (250) Ox4 Location -9/Mines Parts ------- > --- POWER (1) -------- (None) > --- PROPULSION (2) --- (None) > --- UTILITY (2) ------ Large Battery PSU Rigger > --- WEAPON (2) ------- Latent Energy Streamer > --- INVENTORY (5) ---- AWS/Thermal Peak State ------------ > --- POWER ------------ (None) > --- PROPULSION ------- (None) > --- UTILITY ---------- Large Battery PSU Rigger > --- WEAPON ----------- AWS/Thermal > --- INVENTORY -------- Latent Energy Streamer [Rating: 26] Favorites ----------- Power Ion Engine Engine Ion Engine Power Core Light Nuclear Core Propulsion Light Treads Treads Light Treads Flight Unit Flight Unit Utility PSU Rigger Device PSU Rigger Storage Large Battery Weapon Light Assault Rifle Energy Gun AWS/Thermal Energy Cannon Latent Energy Streamer Ballistic Gun Light Assault Rifle Special Weapon Mining Laser Build | -11 -10 -10 -10 -9 ------- Run | Yrd Mat Min Exi Min Slots Evolved . | . . . . . Power . | . . . . . Propulsion . | . . . . . Utility . | . . . . . Weapon . | . . . . . Parts Attached 26 | 5 9 3 7 2 Power 2 | 1 1 . . . Engine 1 | 1 . . . . Core 1 | . 1 . . . Reactor . | . . . . . Propulsion 5 | 2 3 . . . Treads 2 | 2 . . . . Leg . | . . . . . Wheel . | . . . . . Hover . | . . . . . Flight 3 | . 3 . . . Utility 3 | . 1 . 2 . Device 2 | . 1 . 1 . Storage 1 | . . . 1 . Processor . | . . . . . Hackware . | . . . . . Protection . | . . . . . Artifact . | . . . . . Weapon 16 | 2 4 3 5 2 Energy Gun 4 | . . . 3 1 Energy Cannon 3 | . . . 2 1 Ballistic Gun 6 | 2 3 1 . . Ballistic Cannon . | . . . . . Launcher . | . . . . . Special Weapon 3 | . 1 2 . . Impact Weapon . | . . . . . Slashing Weapon . | . . . . . Piercing Weapon . | . . . . . Special Melee Weapon . | . . . . . Unidentified Prototypes 3 | . . . 3 . Parts Lost 7 | . 1 6 . . Power 2 | . 1 1 . . Propulsion 2 | . . 2 . . Utility 1 | . . 1 . . Weapon 2 | . . 2 . . Highest Loss Streak 5 | . 1 5 . . To Critical Strikes . | . . . . . Average Slot Usage (%) 50 | . 75 63 25 42 Engine 3 | . 10 . . . Core 2 | . 3 11 . . Treads 9 | . 24 . . . Flight 3 | . 3 14 . . Device 9 | . 6 12 11 14 Storage 1 | . . . 2 14 Energy Gun 4 | . . . 9 . Energy Cannon 1 | . . . 2 14 Ballistic Gun 12 | . 26 16 . . Special Weapon 1 | . . 8 . . Naked Turns 74 | . . 12 62 . Heaviest Build 15 | 7 8 8 13 15 Greatest Support 40 | 40 40 8 3 3 Greatest Overweight (x) 4 | 1 . 2 4 4 Average Overweight (x) 1 | . . . 1 4 Largest Inventory Capacity 5 | 5 5 5 5 5 Average Capacity 5 | 5 5 5 5 5 Most Carried 4 | . 3 2 4 3 Average Carried . | . . . 1 2 Final Capacity 5 | 5 5 5 5 5 Final Carried 2 | . 1 . 1 2 Class Distribution -------------------- 100% | Mutant Dominant Class ---------------- Mutant | -10/Materials Mutant | -10/Mines Mutant | -10/Exiles Mutant | -9/Mines Resources | -11 -10 -10 -10 -9 ----------- Run | Yrd Mat Min Exi Min Matter Collected 315 | 196 119 . . . Remotely . | . . . . . Salvage Created 240 | . 170 49 . 21 Parts 17 | . 7 7 . 3 Haulers Intercepted . | . . . . . Recyclers Shooed . | . . . . . Parts Field Recycled . | . . . . . Retrieved Matter . | . . . . . Parts Self-Destructed . | . . . . . Prevented . | . . . . . Kills | -11 -10 -10 -10 -9 ------- Run | Yrd Mat Min Exi Min Combat Hostiles Destroyed 6 | . 3 3 . . Guns 6 | . 3 3 . . Classes Destroyed 4 | . 2 1 . 1 Watcher 1 | . 1 . . . Swarmer 3 | . . 3 . . Grunt 3 | . 3 . . . Zionite 1 | . . . . 1 Best Kill Streak 3 | . 1 3 . . Combat Bots Only 3 | . 1 3 . . Max Kills in Single Turn 1 | . 1 1 . 1 Gunslinging . | . . . . . Exploded . | . . . . . Melee . | . . . . . Uniques/NPCs Destroyed . | . . . . . Combat | -11 -10 -10 -10 -9 -------- Run | Yrd Mat Min Exi Min Hostile Shots Fired 86 | . 35 50 . 1 Missed 23 | . 6 17 . . Damage Taken 867 | . 401 391 . 75 Core 252 | . 108 126 . 18 Absorbed by Shields . | . . . . . Regen/Repaired (Parts) 42 | . 42 . . . Core Remaining (%) 100 | 100 . . . . Volleys Fired 56 | . 31 24 . 1 Largest 2 | . 2 2 . 1 Hottest 100 | . 100 40 . 60 Shots Fired 97 | . 61 35 . 1 Gun 95 | . 60 35 . . Cannon 1 | . . . . 1 Launcher . | . . . . . Special 1 | . 1 . . . Kinetic 95 | . 60 35 . . Thermal 1 | . 1 . . . Explosive . | . . . . . Electromagnetic 1 | . . . . 1 Robot Hit Streak 12 | . 12 6 . 7 Robot Miss Streak 5 | . 4 5 . . Penetration Max . | . . . . . Secondary Targets . | . . . . . Shots Hit Robots 68 | . 47 20 . 1 Core Hits 23 | . 13 8 . 2 Critical Kills 1 | . 1 . . . Critical Parts Destroyed . | . . . . . Critical Strikes 1 | . 1 . . . Destroy 1 | . 1 . . . Melee Attacks . | . . . . . Impact . | . . . . . Slashing . | . . . . . Piercing . | . . . . . Sneak Attacks . | . . . . . Combat Hostiles . | . . . . . Follow-up Attacks . | . . . . . Damage Inflicted 731 | . 371 164 . 196 Guns 526 | . 371 155 . . Cannons 10 | . . . . 10 Explosions 186 | . . . . 186 Melee . | . . . . . Ramming 9 | . . 9 . . Kinetic 526 | . 371 155 . . Thermal . | . . . . . Explosive . | . . . . . Electromagnetic 196 | . . . . 196 Impact . | . . . . . Slashing . | . . . . . Piercing . | . . . . . Highest Corruption 3 | . 1 3 3 3 Average Corruption 2 | . 1 1 3 3 Corruption Purged . | . . . . . Corruption Blocked . | . . . . . Effects 7 | . . 1 5 1 Message Errors 1 | . . . 1 . Matter Fused 3 | . . 1 1 1 Heat Flow Errors 1 | . . . 1 . Data Loss (minor) 2 | . . . 2 . Overload Shots . | . . . . . Overflow Damage . | . . . . . Projectiles . | . . . . . Explosions . | . . . . . Melee . | . . . . . Knockbacks . | . . . . . Impact . | . . . . . Kinetic . | . . . . . Secondary . | . . . . . Self-Inflicted Damage 62 | . . 3 . 59 Shots 1 | . . . . 1 Rammed 5 | . . 5 . . Targets Rammed 5 | . . 5 . . Kicked . | . . . . . Crushed . | . . . . . Highest Temperature 237 | . 36 16 237 . Average Temperature 22 | . 10 7 124 . Received Heat Transfer 399 | . 231 159 . 9 Effects 1 | . . . 1 . Interference 1 | . . . 1 . Siege Activations . | . . . . . Robots Corrupted . | . . . . . Combat Hostiles . | . . . . . Parts Fried . | . . . . . Impact Corruptions . | . . . . . Robots Melted . | . . . . . Combat Hostiles . | . . . . . Parts Melted . | . . . . . Heat Transferred . | . . . . . Parts Sabotaged . | . . . . . Parts Stolen . | . . . . . Parts Stripped . | . . . . . Power Chain Reactions . | . . . . . Latent Energy Used 109 | . . . . 109 LE Corruption 2 | . . . . 2 Alert | -11 -10 -10 -10 -9 ------- Run | Yrd Mat Min Exi Min Peak Influence 125 | . 125 108 . 15 Initial 48 | . . 48 . . Average 52 | . 52 89 . 2 Maximum Alert Level . | . . . . . Low Security (%) 100 | 100 100 100 . 100 Level 1 . | . . . . . Level 2 . | . . . . . Level 3 . | . . . . . Level 4 . | . . . . . Level 5 . | . . . . . High Security . | . . . . . Max Security . | . . . . . Squads Dispatched . | . . . . . Investigation . | . . . . . Extermination . | . . . . . Reinforcement . | . . . . . Assault . | . . . . . Garrison . | . . . . . Intercept . | . . . . . Searches Triggered . | . . . . . Construction Impeded . | . . . . . Haulers Reinforced . | . . . . . Active Scanning Responses . | . . . . . Cargo Convoy Interrupts . | . . . . . Stealth | -11 -10 -10 -10 -9 --------- Run | Yrd Mat Min Exi Min Distress Signals 1 | . 1 . . . Communications Jammed . | . . . . . Distress Signals . | . . . . . Times Spotted 13 | . 5 5 . 3 Peak Tracking Total 3 | . 2 3 . 3 Tactical Retreats 1 | . 1 . . . Traps | -11 -10 -10 -10 -9 ------- Run | Yrd Mat Min Exi Min Traps Triggered 1 | . 1 . . . Indirectly . | . . . . . Trap Hack Attempts . | . . . . . Triggered . | . . . . . Disarmed . | . . . . . Reprogrammed . | . . . . . Reused . | . . . . . Traps Extracted . | . . . . . Installed . | . . . . . Triggered . | . . . . . Machines | -11 -10 -10 -10 -9 ---------- Run | Yrd Mat Min Exi Min Machines Disabled 1 | . . . . 1 Max in Single Turn 1 | . . . . 1 Machines Repaired . | . . . . . Machines Dismantled . | . . . . . Machines Sabotaged . | . . . . . Overloaded Fab Kills . | . . . . . Hacking | -11 -10 -10 -10 -9 --------- Run | Yrd Mat Min Exi Min Machines Accessed 5 | . 5 . . . Terminals 3 | . 3 . . . Fabricators . | . . . . . Repair Stations 1 | . 1 . . . Recycling Units 1 | . 1 . . . Scanalyzers . | . . . . . Garrison Access . | . . . . . Total Hacks 14 | . 14 . . . Successful 7 | . 7 . . . Failed 7 | . 7 . . . Catastrophic . | . . . . . Database Lockouts . | . . . . . Manual 1 | . . . 1 . Terminals 10 | . 10 . . . Fabricators . | . . . . . Repair Stations 2 | . 2 . . . Recycling Units 2 | . 2 . . . Scanalyzers . | . . . . . Garrison Access . | . . . . . Terminal Hacks 4 | . 4 . . . Prototype ID Bank 1 | . 1 . . . Locate Traps 1 | . 1 . . . Hauler Manifests 1 | . 1 . . . Zone Layout 1 | . 1 . . . Fabricator Hacks . | . . . . . Repair Station Hacks 2 | . 2 . . . Scan Component 1 | . 1 . . . Repair 1 | . 1 . . . Recycling Unit Hacks 1 | . 1 . . . Retrieve Matter 1 | . 1 . . . Scanalyzer . | . . . . . Garrison Access Hacks . | . . . . . Unauthorized Hacks . | . . . . . Terminals . | . . . . . Fabricators . | . . . . . Repair Stations . | . . . . . Recycling Units . | . . . . . Scanalyzers . | . . . . . Garrison Access . | . . . . . Data Cores Recovered . | . . . . . Used . | . . . . . Hacking Detections 3 | . 3 . . . Full Trace Events 1 | . 1 . . . Feedback Events . | . . . . . Feedback Blocked . | . . . . . Robot Schematics Acquired . | . . . . . Robots Built . | . . . . . Authchips . | . . . . . Time . | . . . . . Total Robot Build Rating . | . . . . . Part Schematics Acquired . | . . . . . Parts Built . | . . . . . Authchips . | . . . . . Time . | . . . . . Total Part Build Rating . | . . . . . Parts Repaired 1 | . 1 . . . Time 13 | . 13 . . . Parts Recycled . | . . . . . Recycled Matter . | . . . . . Retrieved Matter . | . . . . . Retrieved Components . | . . . . . Parts Scanalyzed . | . . . . . Part Schematics Acquired . | . . . . . Parts Damaged . | . . . . . Bothacking | -11 -10 -10 -10 -9 ------------ Run | Yrd Mat Min Exi Min Used RIF Installer . | . . . . . Robots Hacked . | . . . . . Non-combat . | . . . . . Combat . | . . . . . Robot Hacks Applied . | . . . . . Relay Couplers Released . | . . . . . Fabnet Peak Effective % . | . . . . . Robots Rewired . | . . . . . Allies Hacked . | . . . . . Hacks Repelled . | . . . . . Allies | -11 -10 -10 -10 -9 -------- Run | Yrd Mat Min Exi Min Total Allies . | . . . . . Largest Group . | . . . . . Highest-Rated Group . | . . . . . Highest-Rated Ally . | . . . . . Total Orders . | . . . . . Ally Attacks . | . . . . . Total Damage . | . . . . . Kills . | . . . . . Allies Corrupted . | . . . . . Allies Melted . | . . . . . Intel | -11 -10 -10 -10 -9 ------- Run | Yrd Mat Min Exi Min Robot Analysis Total . | . . . . . Derelict Logs Recovered 1 | . . 1 . . Drone Launches . | . . . . . Drone Recoveries . | . . . . . Exploration | -11 -10 -10 -10 -9 ------------- Run | Yrd Mat Min Exi Min Turns Passed 950 | 56 337 122 407 28 Spaces Moved 499 | 35 147 57 251 9 Core 286 | 7 . 19 251 9 Treads 149 | 28 121 . . . Legs . | . . . . . Wheels . | . . . . . Hover . | . . . . . Flight 64 | . 26 38 . . Fastest Speed 37 | 50 37 37 50 250 Average Speed 134 | 140 138 93 136 250 Slowest Speed 250 | 160 160 150 250 250 Overloaded Moves . | . . . . . Propulsion Burnouts . | . . . . . Robots Hopped . | . . . . . Cave-ins Triggered . | . . . . . Exploration Rate (%) 23 | 4 31 15 60 7 Regions Visited 4 Branch Regions 3 Pre-discovered Areas 1 | . . 1 . . Known Exits Taken . | . . . . . Unknown Exits Taken 4 | 1 1 1 1 . Scrap Searched . | . . . . . Spaces Dug 1 | . 1 . . . Terrain Destroyed 10 | . 1 . . 9 Melee . | . . . . . Projectile 1 | . 1 . . . AOE 9 | . . . . 9 Terrain Rammed . | . . . . . Walls Destroyed . | . . . . . Machines Disabled . | . . . . . Actions | -11 -10 -10 -10 -9 --------- Run | Yrd Mat Min Exi Min Total 700 | 39 227 98 320 16 Wait 97 | . 33 7 55 2 Move 495 | 34 146 56 250 9 Hop . | . . . . . Pick Up 10 | . 6 . 4 . Fast Attach 5 | 5 . . . . Attach 14 | . 3 2 7 2 Detach 8 | . . 2 4 2 Swap 7 | . 6 1 . . Drop 3 | . 2 1 . . Fire 56 | . 31 24 . 1 Melee . | . . . . . Ram 5 | . . 5 . . Kick . | . . . . . Crush . | . . . . . Escape Stasis . | . . . . . Rewire . | . . . . . Trap . | . . . . . Miscellaneous . | . . . . . Route ------- -11/Scrapyard -10/Materials (discovered 2 exits: [Mat] / [*Min]) -10/Mines (discovered 2 exits: [*Mat] / *Exi) -10/Exiles -9/Mines (discovered 1 exit: [*Mat]) History --------- Turn | Location | Event 6 | -11/Scrapyard | Discovered new exit (range 15) 57 | -11/Scrapyard | Entered Materials 214 | -10/Materials | Discovered new exit (range 15) 304 | -10/Materials | Build established: Mutant 334 | -10/Materials | Discovered new exit (range 18) 389 | -10/Materials | Repaired Lgt. Assault Rifle 394 | -10/Materials | Entered Mines 401 | -10/Mines | Core integrity fell below 50% 495 | -10/Mines | Discovered new exit (range 6) 509 | -10/Mines | Core integrity fell below 20% 513 | -10/Mines | Deemed a non-threat by the Exiles lab entrance 514 | -10/Mines | Discovered new exit (range 5) 516 | -10/Mines | Entered Exiles 529 | -10/Exiles | Met 8R-AWN 535 | -10/Exiles | Lost 5 parts (1p1n1u2w) 538 | -10/Exiles | Met EX-HEX 551 | -10/Exiles | Met EX-BIN 557 | -10/Exiles | Aligned with FarCom system 558 | -10/Exiles | Given EX-Vault access code 569 | -10/Exiles | Opened EX-Vault 572 | -10/Exiles | Found Prototype Energy Gun 575 | -10/Exiles | Found Prototype Energy Cannon 577 | -10/Exiles | Found Prototype Device 578 | -10/Exiles | Identified AWS/Thermal 579 | -10/Exiles | Identified Latent Energy Streamer 580 | -10/Exiles | Identified PSU Rigger 650 | -10/Exiles | Warned to stay clear of 0b10 Research branches 655 | -10/Exiles | Exiles lab attacked by MAIN.C 894 | -10/Exiles | Discovered new exit (range 11) 923 | -10/Exiles | Stole three prototypes: AWS/Thermal, PSU Rigger, Latent Energy Streamer 923 | -10/Exiles | Entered Mines 930 | -9/Mines | Received a Rocket Launcher from a helpful Derelict 948 | -9/Mines | Discovered new exit (range 8) 951 | -9/Mines | Destroyed by G-47 Trooper with Particle Gun Last Messages --------------- depths." 20-8N3(g): "They are crazy." 20-8N3(g): "Everyone knows a good old rocket launcher goes a long way." 20-8N3(g): "Need to get rid of a swarm? Done. Need a big hole in the wall? Done." 20-8N3(g): "Need a small hole in the wall? Leave that to the mining laser wimps, I say!" 20-8N3(g): "Would you like a rocket launcher? I know I would if I were you, so I'm going to lend you mine." 20-8N3(g) slips back into the shadows. AM-PHS: "Oh no, it's like what happened to the Exiles when they were wandering homeless, only there's no Warlord to save us!" System corrupted: Matter fused (-8). K-01 Serf collects debris. EXIT=FOUND AM-PHS destroyed. Laser Drill disabled. Map ----- +----------------------------------------------------+ | | | | | | | | | | | | | | | | | | | | | ?????????????????????????????????????????? | | ?????????????????????????????????????????? | | ?????????????????????????????????????????? | | ?????????????????????????????????????????? | | ?????????????????????????????????????????? | | ??????????????#######????????????????????? | | ??????????????# #????????????????????? | | ????????####??# < ????????????????????? | | ???????## ##?# g #????????????????????? | | ??###### #?# """ ##???????????????????? | | ??# #?# k????????????????????? | | ??# #??# #????????????????????? | | ??# #??? ?????????????????????? | | ??# ] #???#;g;#?????????????????????? | | ???# #####;g;#?????????????????????? | | ???## =%@;#?????????????????????? | | ????## ####;;;;#?????????????????????? | | ?????### ##??######?????????????????????? | | ???????####??????????????????????????????? | | ?????????????????????????????????????????? | | ?????????????????????????????????????????? | | ?????????????????????????????????????????? | | ?????????????????????????????????????????? | | ?????????????????????????????????????????? | | ?????????????????????????????????????????? | | ?????????????????????????????????????????? | | ?????????????????????????????????????????? | | ?????????????????????????????????????????? | | ?????????????????????????????????????????? | | ?????????????????????????????????????????? | | ?????????????????????????????????????????? | | ?????????????????????????????????????????? | | ?????????????????????????????????????????? | | ?????????????????????????????????????????? | | ?????????????????????????????????????????? | | ?????????????????????????????????????????? | | ?????????????????????????????????????????? | | ?????????????????????????????????????????? | | ?????????????????????????????????????????? | | ?????????????????????????????????????????? | +----------------------------------------------------+ Best States ------------- Heat Dissipation 25 Energy Generation 14 Energy Capacity 300 Matter Stores 300 Matter Capacity 300 Sight Range 16 Robot Scan Range 14 Terrain Scan Density 10 Evasion (%) 61 Recoil Reduction 2 Item Schematics ----------------- None Robot Schematics ------------------ None Fabricated ------------ Nothing Alien Tech Used ----------------- None Achievements -------------- None Challenges ------------ None Game ------ Seed MobileMasterFalx Manual? 0 Play Time 00:07:02 Cumulative 8.0 hours Start 2024.04.28 @ 21:13:41 End 2024.04.28 @ 21:20:18 Sessions 1 Manual Loads 0 Difficulty Rogue Special Mode None Game No. 29 Rogue 15 Adventurer 14 Explorer 0 Win Type - Total 0 Types 0/0/0/0/0/0/0/0/0 Lore% 16 Gallery% 18 Achievement% 15 Wizard Run 0 Options --------- Layout 1 ASCII 0 Keyboard 0 Movement Mouse Keybinds 0 Fullscreen 2 Font 24/Proggy Map View 50x35 Zoom Use 0% Tactical HUD 0 Map Filters NONE Filters NONE Steam 1 RUN: f370ae7b-ce1d-46e2-824a-eb1e2f53fefe